[Event "Live Chess"]
[Site "Chess.com"]
[Date "2010.12.01"]
[Round "-"]
[White "SeanOB"]
[Black "hipposcottimus"]
[Result "0-1"]
[CurrentPosition "5r2/pQpk2pp/3r4/6q1/8/7P/P2n1PP1/3R1R1K w - -"]
[Timezone "UTC"]
[ECO "A40"]
[ECOUrl "https://www.chess.com/openings/Englund-Gambit-Declined-Reversed-Alekhine-Reversed-Krebs-Reversed-Brooklyn-Variation"]
[UTCDate "2010.12.01"]
[UTCTime "19:13:37"]
[WhiteElo "1048"]
[BlackElo "1685"]
[TimeControl "60"]
[Termination "hipposcottimus won on time"]
[StartTime "19:13:37"]
[EndDate "2010.12.01"]
[EndTime "19:15:30"]
[Link "https://www.chess.com/game/live/73074929"]

1. d4 {[%clk 0:01:00]} 1... e5 {[%clk 0:01:00]} 2. Nf3 {[%clk 0:01:00]} 2... e4 {[%clk 0:00:59.3]} 3. Ng1 {[%clk 0:00:58.6]} 3... d5 {[%clk 0:00:58.9]} 4. e3 {[%clk 0:00:58.6]} 4... Nc6 {[%clk 0:00:58.4]} 5. c4 {[%clk 0:00:58.6]} 5... f6 {[%clk 0:00:57.9]} 6. cxd5 {[%clk 0:00:57.8]} 6... Qxd5 {[%clk 0:00:57.3]} 7. Nc3 {[%clk 0:00:57.4]} 7... Bb4 {[%clk 0:00:54.2]} 8. Bd2 {[%clk 0:00:54.9]} 8... Bxc3 {[%clk 0:00:53.9]} 9. bxc3 {[%clk 0:00:53.7]} 9... Be6 {[%clk 0:00:52.2]} 10. c4 {[%clk 0:00:52]} 10... Qd7 {[%clk 0:00:51.9]} 11. d5 {[%clk 0:00:48.9]} 11... Bxd5 {[%clk 0:00:51]} 12. cxd5 {[%clk 0:00:48.2]} 12... Qxd5 {[%clk 0:00:50.7]} 13. Ne2 {[%clk 0:00:45.3]} 13... O-O-O {[%clk 0:00:48.7]} 14. Nf4 {[%clk 0:00:39.9]} 14... Qg5 {[%clk 0:00:47.5]} 15. Be2 {[%clk 0:00:35.8]} 15... Rd6 {[%clk 0:00:46.4]} 16. O-O {[%clk 0:00:33.5]} 16... Nh6 {[%clk 0:00:45.5]} 17. Qc2 {[%clk 0:00:30]} 17... f5 {[%clk 0:00:44.7]} 18. Bb4 {[%clk 0:00:28.3]} 18... Nxb4 {[%clk 0:00:38.6]} 19. Qb3 {[%clk 0:00:25.8]} 19... Nd3 {[%clk 0:00:37.4]} 20. Nxd3 {[%clk 0:00:24.5]} 20... exd3 {[%clk 0:00:36.7]} 21. Bxd3 {[%clk 0:00:24.2]} 21... Ng4 {[%clk 0:00:35]} 22. h3 {[%clk 0:00:22]} 22... Ne5 {[%clk 0:00:32.2]} 23. Be2 {[%clk 0:00:20.5]} 23... f4 {[%clk 0:00:31.6]} 24. exf4 {[%clk 0:00:19]} 24... Qxf4 {[%clk 0:00:31.1]} 25. Bf3 {[%clk 0:00:18.4]} 25... Qg5 {[%clk 0:00:30.1]} 26. Rae1 {[%clk 0:00:15.2]} 26... Rf8 {[%clk 0:00:28]} 27. Qxb7+ {[%clk 0:00:09.3]} 27... Kd7 {[%clk 0:00:25.9]} 28. Rd1 {[%clk 0:00:05.3]} 28... Nxf3+ {[%clk 0:00:25]} 29. Kh1 {[%clk 0:00:03.4]} 29... Nd2 {[%clk 0:00:18.5]} 0-1

[Event "Live Chess"]
[Site "Chess.com"]
[Date "2010.12.01"]
[Round "-"]
[White "hipposcottimus"]
[Black "johnyd10"]
[Result "1-0"]
[CurrentPosition "2r2r1k/pp4pp/3p4/3b3q/3N4/3Q4/P5PP/3R3K b - -"]
[Timezone "UTC"]
[ECO "C51"]
[ECOUrl "https://www.chess.com/openings/Giuoco-Piano-Game-Evans-Accepted-McDonnell-Defense-6.O-O"]
[UTCDate "2010.12.01"]
[UTCTime "19:10:58"]
[WhiteElo "1685"]
[BlackElo "1694"]
[TimeControl "60"]
[Termination "hipposcottimus won on time"]
[StartTime "19:10:58"]
[EndDate "2010.12.01"]
[EndTime "19:13:02"]
[Link "https://www.chess.com/game/live/73074233"]

1. e4 {[%clk 0:01:00]} 1... e5 {[%clk 0:01:00]} 2. Nf3 {[%clk 0:00:58.9]} 2... Nc6 {[%clk 0:00:59.1]} 3. Bc4 {[%clk 0:00:58.6]} 3... Bc5 {[%clk 0:00:58.1]} 4. b4 {[%clk 0:00:57.3]} 4... Bxb4 {[%clk 0:00:55.7]} 5. c3 {[%clk 0:00:57]} 5... Bc5 {[%clk 0:00:54.5]} 6. O-O {[%clk 0:00:56.8]} 6... Nf6 {[%clk 0:00:52.9]} 7. d4 {[%clk 0:00:56.6]} 7... exd4 {[%clk 0:00:51.5]} 8. cxd4 {[%clk 0:00:56.1]} 8... Bb6 {[%clk 0:00:50.5]} 9. Nc3 {[%clk 0:00:55.5]} 9... O-O {[%clk 0:00:48.9]} 10. d5 {[%clk 0:00:54]} 10... Na5 {[%clk 0:00:45]} 11. Bb3 {[%clk 0:00:52.3]} 11... Nxb3 {[%clk 0:00:43.7]} 12. Qxb3 {[%clk 0:00:52]} 12... Qe7 {[%clk 0:00:40.5]} 13. e5 {[%clk 0:00:50]} 13... Nh5 {[%clk 0:00:36.3]} 14. Bg5 {[%clk 0:00:47.9]} 14... f6 {[%clk 0:00:34.6]} 15. exf6 {[%clk 0:00:46.6]} 15... Nxf6 {[%clk 0:00:32.1]} 16. Rfe1 {[%clk 0:00:45.7]} 16... Qf7 {[%clk 0:00:30.8]} 17. Ne5 {[%clk 0:00:42.4]} 17... Qh5 {[%clk 0:00:26.2]} 18. d6+ {[%clk 0:00:38]} 18... Kh8 {[%clk 0:00:24.2]} 19. Bxf6 {[%clk 0:00:33.7]} 19... Rxf6 {[%clk 0:00:22.4]} 20. Nd5 {[%clk 0:00:32.5]} 20... Bxf2+ {[%clk 0:00:20.2]} 21. Kh1 {[%clk 0:00:21.7]} 21... Bxe1 {[%clk 0:00:19.1]} 22. Rxe1 {[%clk 0:00:21.5]} 22... Rf8 {[%clk 0:00:16.2]} 23. Ne7 {[%clk 0:00:19.9]} 23... cxd6 {[%clk 0:00:13.5]} 24. Nf3 {[%clk 0:00:16.8]} 24... d5 {[%clk 0:00:11.3]} 25. Rg1 {[%clk 0:00:15.8]} 25... d6 {[%clk 0:00:10.1]} 26. Nxd5 {[%clk 0:00:14]} 26... Be6 {[%clk 0:00:08.7]} 27. Qd3 {[%clk 0:00:11.6]} 27... Bxd5 {[%clk 0:00:07.1]} 28. Nd4 {[%clk 0:00:10.1]} 28... Rac8 {[%clk 0:00:02]} 29. Rd1 {[%clk 0:00:09.2]} 1-0

[Event "Live Chess"]
[Site "Chess.com"]
[Date "2010.12.01"]
[Round "-"]
[White "hipposcottimus"]
[Black "helgefin"]
[Result "1-0"]
[CurrentPosition "1r5r/k5pp/2R5/pP2p1B1/3n4/3P4/1P3PPP/5RK1 b - -"]
[Timezone "UTC"]
[ECO "C57"]
[ECOUrl "https://www.chess.com/openings/Italian-Game-Traxler-Bishop-Sacrifice-Line-5...Ke7-6.Bb3"]
[UTCDate "2010.12.01"]
[UTCTime "19:08:18"]
[WhiteElo "1676"]
[BlackElo "1501"]
[TimeControl "60"]
[Termination "hipposcottimus won on time"]
[StartTime "19:08:18"]
[EndDate "2010.12.01"]
[EndTime "19:10:31"]
[Link "https://www.chess.com/game/live/73073543"]

1. e4 {[%clk 0:01:00]} 1... e5 {[%clk 0:01:00]} 2. Nf3 {[%clk 0:00:58.9]} 2... Nc6 {[%clk 0:00:58.5]} 3. Bc4 {[%clk 0:00:58.4]} 3... Nf6 {[%clk 0:00:57]} 4. Ng5 {[%clk 0:00:57.7]} 4... Bc5 {[%clk 0:00:56.5]} 5. Bxf7+ {[%clk 0:00:50.9]} 5... Ke7 {[%clk 0:00:55.2]} 6. Bb3 {[%clk 0:00:49.5]} 6... d5 {[%clk 0:00:47.7]} 7. exd5 {[%clk 0:00:45.3]} 7... Nxd5 {[%clk 0:00:46.4]} 8. Nf7 {[%clk 0:00:39.5]} 8... Kxf7 {[%clk 0:00:34.1]} 9. Qf3+ {[%clk 0:00:37]} 9... Qf6 {[%clk 0:00:20.9]} 10. Bxd5+ {[%clk 0:00:34]} 10... Ke7 {[%clk 0:00:19.2]} 11. Nc3 {[%clk 0:00:28.2]} 11... Qxf3 {[%clk 0:00:17.5]} 12. Bxf3 {[%clk 0:00:28]} 12... Bd7 {[%clk 0:00:16.8]} 13. Nd5+ {[%clk 0:00:26.7]} 13... Kd8 {[%clk 0:00:14.9]} 14. d3 {[%clk 0:00:24.3]} 14... Nd4 {[%clk 0:00:12.9]} 15. Be4 {[%clk 0:00:21.5]} 15... c6 {[%clk 0:00:11.7]} 16. O-O {[%clk 0:00:15.9]} 16... cxd5 {[%clk 0:00:10.4]} 17. Bxd5 {[%clk 0:00:15.6]} 17... Nxc2 {[%clk 0:00:09.4]} 18. Bxb7 {[%clk 0:00:14.2]} 18... Rb8 {[%clk 0:00:07.9]} 19. Bg5+ {[%clk 0:00:08.8]} 19... Kc7 {[%clk 0:00:06.3]} 20. Rac1 {[%clk 0:00:08.4]} 20... Nd4 {[%clk 0:00:04]} 21. Rxc5+ {[%clk 0:00:07.2]} 21... Kxb7 {[%clk 0:00:03.6]} 22. Rc4 {[%clk 0:00:05.9]} 22... Ka8 {[%clk 0:00:03.1]} 23. Rc7 {[%clk 0:00:04.2]} 23... Bb5 {[%clk 0:00:02.5]} 24. Rc5 {[%clk 0:00:02.8]} 24... a6 {[%clk 0:00:00.9]} 25. a4 {[%clk 0:00:02]} 25... Ka7 {[%clk 0:00:00.6]} 26. axb5 {[%clk 0:00:00.6]} 26... a5 {[%clk 0:00:00.3]} 27. Rc6 {[%clk 0:00:00.3]} 1-0

[Event "Live Chess"]
[Site "Chess.com"]
[Date "2010.12.01"]
[Round "-"]
[White "snowflakeobsidian"]
[Black "hipposcottimus"]
[Result "0-1"]
[CurrentPosition "8/pp3pkp/5p2/8/3bb3/1P4P1/P4r1P/2R3K1 w - -"]
[Timezone "UTC"]
[ECO "A00"]
[ECOUrl "https://www.chess.com/openings/Kings-Fianchetto-Opening-1...d5"]
[UTCDate "2010.12.01"]
[UTCTime "19:05:42"]
[WhiteElo "1443"]
[BlackElo "1672"]
[TimeControl "60"]
[Termination "hipposcottimus won on time"]
[StartTime "19:05:42"]
[EndDate "2010.12.01"]
[EndTime "19:07:28"]
[Link "https://www.chess.com/game/live/73072781"]

1. g3 {[%clk 0:01:00]} 1... d5 {[%clk 0:01:00]} 2. b3 {[%clk 0:00:59.5]} 2... e5 {[%clk 0:00:59.5]} 3. Bb2 {[%clk 0:00:59]} 3... e4 {[%clk 0:00:58.8]} 4. d3 {[%clk 0:00:58.5]} 4... c5 {[%clk 0:00:58.2]} 5. dxe4 {[%clk 0:00:57.2]} 5... Nc6 {[%clk 0:00:57.6]} 6. exd5 {[%clk 0:00:55.6]} 6... Nb4 {[%clk 0:00:57]} 7. d6 {[%clk 0:00:53]} 7... Bxd6 {[%clk 0:00:54.3]} 8. e3 {[%clk 0:00:51]} 8... Nf6 {[%clk 0:00:53.5]} 9. Nf3 {[%clk 0:00:49.8]} 9... Bd7 {[%clk 0:00:52.3]} 10. Bd3 {[%clk 0:00:48.8]} 10... O-O {[%clk 0:00:51.3]} 11. Qe2 {[%clk 0:00:47.3]} 11... Re8 {[%clk 0:00:48.6]} 12. Ba3 {[%clk 0:00:45.6]} 12... Qb6 {[%clk 0:00:44.1]} 13. Bxb4 {[%clk 0:00:44.4]} 13... Qxb4+ {[%clk 0:00:43.1]} 14. Qd2 {[%clk 0:00:43.1]} 14... c4 {[%clk 0:00:42.7]} 15. Qxb4 {[%clk 0:00:41.3]} 15... Bxb4+ {[%clk 0:00:41.8]} 16. Nfd2 {[%clk 0:00:40.1]} 16... cxd3 {[%clk 0:00:41.5]} 17. cxd3 {[%clk 0:00:38.2]} 17... Bb5 {[%clk 0:00:39.3]} 18. O-O {[%clk 0:00:35.4]} 18... Bxd3 {[%clk 0:00:37.9]} 19. Rd1 {[%clk 0:00:32.2]} 19... Red8 {[%clk 0:00:37.5]} 20. Ne4 {[%clk 0:00:30.7]} 20... Bc2 {[%clk 0:00:36.8]} 21. Rxd8+ {[%clk 0:00:27.3]} 21... Rxd8 {[%clk 0:00:35]} 22. Nxf6+ {[%clk 0:00:26.7]} 22... gxf6 {[%clk 0:00:34.7]} 23. Nd2 {[%clk 0:00:24.7]} 23... Bc3 {[%clk 0:00:34.1]} 24. Rc1 {[%clk 0:00:24]} 24... Rxd2 {[%clk 0:00:30]} 25. Kg2 {[%clk 0:00:21.3]} 25... Be5 {[%clk 0:00:27.1]} 26. e4 {[%clk 0:00:19.8]} 26... Bxe4+ {[%clk 0:00:25.9]} 27. Kg1 {[%clk 0:00:12.3]} 27... Bd4 {[%clk 0:00:23.8]} 28. Rc8+ {[%clk 0:00:11.6]} 28... Kg7 {[%clk 0:00:23.1]} 29. Rc1 {[%clk 0:00:07]} 29... Rxf2 {[%clk 0:00:22]} 0-1

[Event "Live Chess"]
[Site "Chess.com"]
[Date "2010.12.01"]
[Round "-"]
[White "hipposcottimus"]
[Black "snowflakeobsidian"]
[Result "1-0"]
[CurrentPosition "4r2r/5n1p/p3N1p1/2p1Pn1k/6N1/1P3Q2/P4PPP/4R1K1 b - -"]
[Timezone "UTC"]
[ECO "B00"]
[ECOUrl "https://www.chess.com/openings/Owens-Defense"]
[UTCDate "2010.12.01"]
[UTCTime "19:03:00"]
[WhiteElo "1672"]
[BlackElo "1443"]
[TimeControl "60"]
[Termination "hipposcottimus won on time"]
[StartTime "19:03:00"]
[EndDate "2010.12.01"]
[EndTime "19:05:02"]
[Link "https://www.chess.com/game/live/73072052"]

1. e4 {[%clk 0:01:00]} 1... b6 {[%clk 0:01:00]} 2. Nf3 {[%clk 0:00:59.5]} 2... Bb7 {[%clk 0:00:59.4]} 3. Nc3 {[%clk 0:00:58.7]} 3... Nc6 {[%clk 0:00:58.4]} 4. d4 {[%clk 0:00:58.3]} 4... e6 {[%clk 0:00:57.9]} 5. Bb5 {[%clk 0:00:55.4]} 5... Nce7 {[%clk 0:00:57.4]} 6. O-O {[%clk 0:00:53.5]} 6... g6 {[%clk 0:00:56.9]} 7. e5 {[%clk 0:00:49.2]} 7... Bg7 {[%clk 0:00:56.5]} 8. Bg5 {[%clk 0:00:47]} 8... Nh6 {[%clk 0:00:55.9]} 9. Bf6 {[%clk 0:00:44.1]} 9... O-O {[%clk 0:00:54.9]} 10. Re1 {[%clk 0:00:35]} 10... Bc6 {[%clk 0:00:53.7]} 11. Qe2 {[%clk 0:00:32.6]} 11... Bxb5 {[%clk 0:00:52]} 12. Nxb5 {[%clk 0:00:32.3]} 12... a6 {[%clk 0:00:51]} 13. Nc3 {[%clk 0:00:29.6]} 13... d6 {[%clk 0:00:49.8]} 14. Ne4 {[%clk 0:00:27.4]} 14... dxe5 {[%clk 0:00:48.2]} 15. dxe5 {[%clk 0:00:26.7]} 15... c5 {[%clk 0:00:45.2]} 16. c4 {[%clk 0:00:24.9]} 16... b5 {[%clk 0:00:44.1]} 17. b3 {[%clk 0:00:24.1]} 17... bxc4 {[%clk 0:00:42.6]} 18. Qxc4 {[%clk 0:00:23.9]} 18... Qd5 {[%clk 0:00:40]} 19. Qe2 {[%clk 0:00:21.2]} 19... Nef5 {[%clk 0:00:36.1]} 20. Rad1 {[%clk 0:00:20.8]} 20... Qc6 {[%clk 0:00:33.1]} 21. Bxg7 {[%clk 0:00:19.8]} 21... Kxg7 {[%clk 0:00:31.1]} 22. Nf6 {[%clk 0:00:19.5]} 22... Qc7 {[%clk 0:00:27.2]} 23. Ng5 {[%clk 0:00:16.3]} 23... Rh8 {[%clk 0:00:23.6]} 24. Rd7 {[%clk 0:00:14.1]} 24... Qc6 {[%clk 0:00:21.1]} 25. Rxf7+ {[%clk 0:00:10.5]} 25... Nxf7 {[%clk 0:00:18.4]} 26. Qc4 {[%clk 0:00:10.3]} 26... Qd5 {[%clk 0:00:15.9]} 27. Nxe6+ {[%clk 0:00:09.8]} 27... Kh6 {[%clk 0:00:13.2]} 28. Qxd5 {[%clk 0:00:09.4]} 28... Rae8 {[%clk 0:00:09.3]} 29. Ng4+ {[%clk 0:00:09]} 29... Kh5 {[%clk 0:00:05.3]} 30. Qf3 {[%clk 0:00:07.8]} 1-0

[Event "Live Chess"]
[Site "Chess.com"]
[Date "2011.02.01"]
[Round "-"]
[White "alebits"]
[Black "hipposcottimus"]
[Result "1-0"]
[CurrentPosition "2r1r1k1/pp1b2pp/1qp2B2/5P2/4P3/5PQ1/PP5P/R3R2K w - -"]
[Timezone "UTC"]
[ECO "C31"]
[ECOUrl "https://www.chess.com/openings/Kings-Gambit-Declined-Falkbeer-Accepted-Staunton-Charousek-Gambit"]
[UTCDate "2011.02.01"]
[UTCTime "07:52:16"]
[WhiteElo "1770"]
[BlackElo "1788"]
[TimeControl "60"]
[Termination "alebits won by resignation"]
[StartTime "07:52:16"]
[EndDate "2011.02.01"]
[EndTime "07:53:54"]
[Link "https://www.chess.com/game/live/93564766"]

1. e4 {[%clk 0:01:00]} 1... e5 {[%clk 0:01:00]} 2. f4 {[%clk 0:00:52.6]} 2... d5 {[%clk 0:00:59.5]} 3. exd5 {[%clk 0:00:50.4]} 3... e4 {[%clk 0:00:59.2]} 4. d3 {[%clk 0:00:48.7]} 4... Qxd5 {[%clk 0:00:57]} 5. Nc3 {[%clk 0:00:48.2]} 5... Bb4 {[%clk 0:00:56.5]} 6. Bd2 {[%clk 0:00:47.7]} 6... Bxc3 {[%clk 0:00:55.6]} 7. Bxc3 {[%clk 0:00:47.2]} 7... Nf6 {[%clk 0:00:54.2]} 8. Ne2 {[%clk 0:00:44.6]} 8... exd3 {[%clk 0:00:53]} 9. cxd3 {[%clk 0:00:41.6]} 9... Qh5 {[%clk 0:00:52.2]} 10. Ng3 {[%clk 0:00:38.9]} 10... Qg4 {[%clk 0:00:42.8]} 11. Be2 {[%clk 0:00:37.3]} 11... Qe6 {[%clk 0:00:41.1]} 12. O-O {[%clk 0:00:35.9]} 12... O-O {[%clk 0:00:39.7]} 13. Bf3 {[%clk 0:00:35.3]} 13... c6 {[%clk 0:00:38.3]} 14. Re1 {[%clk 0:00:34.6]} 14... Qd6 {[%clk 0:00:33]} 15. Qc2 {[%clk 0:00:33.9]} 15... Qd8 {[%clk 0:00:31.9]} 16. Ne4 {[%clk 0:00:31.2]} 16... Qb6+ {[%clk 0:00:29.6]} 17. Kh1 {[%clk 0:00:28.8]} 17... Nxe4 {[%clk 0:00:28.5]} 18. dxe4 {[%clk 0:00:27.8]} 18... Re8 {[%clk 0:00:25.1]} 19. f5 {[%clk 0:00:26.9]} 19... Nd7 {[%clk 0:00:24.3]} 20. Qd2 {[%clk 0:00:24.9]} 20... Ne5 {[%clk 0:00:23]} 21. Qg5 {[%clk 0:00:23.5]} 21... f6 {[%clk 0:00:20.8]} 22. Qg3 {[%clk 0:00:21.6]} 22... Nxf3 {[%clk 0:00:20]} 23. gxf3 {[%clk 0:00:19.8]} 23... Bd7 {[%clk 0:00:18.4]} 24. Bxf6 {[%clk 0:00:17.3]} 24... Rac8 {[%clk 0:00:17]} 1-0

[Event "Live Chess"]
[Site "Chess.com"]
[Date "2011.02.01"]
[Round "-"]
[White "hipposcottimus"]
[Black "alebits"]
[Result "0-1"]
[CurrentPosition "7k/5p1p/4p1r1/7K/2r5/1N6/PP4PP/R7 w - -"]
[Timezone "UTC"]
[ECO "B30"]
[ECOUrl "https://www.chess.com/openings/Sicilian-Defense-Old-Sicilian-Variation"]
[UTCDate "2011.02.01"]
[UTCTime "07:49:18"]
[WhiteElo "1797"]
[BlackElo "1761"]
[TimeControl "60"]
[Termination "alebits won on time"]
[StartTime "07:49:18"]
[EndDate "2011.02.01"]
[EndTime "07:51:31"]
[Link "https://www.chess.com/game/live/93564237"]

1. e4 {[%clk 0:01:00]} 1... c5 {[%clk 0:01:00]} 2. Nf3 {[%clk 0:00:59.3]} 2... Nc6 {[%clk 0:00:58]} 3. e5 {[%clk 0:00:59]} 3... d6 {[%clk 0:00:56.9]} 4. d4 {[%clk 0:00:58.7]} 4... cxd4 {[%clk 0:00:54.6]} 5. Bb5 {[%clk 0:00:54.4]} 5... dxe5 {[%clk 0:00:53]} 6. Nxe5 {[%clk 0:00:53.6]} 6... Qd6 {[%clk 0:00:45.1]} 7. Bxc6+ {[%clk 0:00:49.1]} 7... bxc6 {[%clk 0:00:44.2]} 8. f4 {[%clk 0:00:45.1]} 8... Nf6 {[%clk 0:00:39.1]} 9. O-O {[%clk 0:00:42.8]} 9... e6 {[%clk 0:00:37.9]} 10. c3 {[%clk 0:00:40.6]} 10... dxc3 {[%clk 0:00:32.6]} 11. Qxd6 {[%clk 0:00:39.4]} 11... Bxd6 {[%clk 0:00:31.9]} 12. Nxc3 {[%clk 0:00:39.1]} 12... O-O {[%clk 0:00:29.9]} 13. Nxc6 {[%clk 0:00:36.9]} 13... Bb7 {[%clk 0:00:28.7]} 14. Na5 {[%clk 0:00:33.3]} 14... Ba6 {[%clk 0:00:26.2]} 15. Nb3 {[%clk 0:00:32.5]} 15... Bxf1 {[%clk 0:00:23.7]} 16. Kxf1 {[%clk 0:00:32.2]} 16... Rad8 {[%clk 0:00:22.4]} 17. Be3 {[%clk 0:00:31.5]} 17... Bb8 {[%clk 0:00:20.3]} 18. Nb5 {[%clk 0:00:26.5]} 18... Nd5 {[%clk 0:00:19.5]} 19. Bxa7 {[%clk 0:00:24.4]} 19... Bxa7 {[%clk 0:00:17.5]} 20. Nxa7 {[%clk 0:00:24.1]} 20... Nxf4 {[%clk 0:00:16.6]} 21. Nc6 {[%clk 0:00:22.6]} 21... Nd3 {[%clk 0:00:15.7]} 22. Ke2 {[%clk 0:00:18.3]} 22... Rd6 {[%clk 0:00:13.4]} 23. Ne7+ {[%clk 0:00:16.1]} 23... Kh8 {[%clk 0:00:11.3]} 24. Nc8 {[%clk 0:00:12.8]} 24... Nf4+ {[%clk 0:00:10.6]} 25. Kf3 {[%clk 0:00:11.5]} 25... Rc6 {[%clk 0:00:10.1]} 26. Kxf4 {[%clk 0:00:10.4]} 26... Rcxc8 {[%clk 0:00:08.7]} 27. Nd4 {[%clk 0:00:10.1]} 27... g5+ {[%clk 0:00:08.1]} 28. Kxg5 {[%clk 0:00:08.6]} 28... Rc5+ {[%clk 0:00:07.1]} 29. Kh6 {[%clk 0:00:08.3]} 29... Rg8 {[%clk 0:00:05]} 30. Nb3 {[%clk 0:00:07.9]} 30... Rc4 {[%clk 0:00:03.4]} 31. Kh5 {[%clk 0:00:01.3]} 31... Rg6 {[%clk 0:00:02]} 0-1

[Event "Live Chess"]
[Site "Chess.com"]
[Date "2011.02.01"]
[Round "-"]
[White "alebits"]
[Black "hipposcottimus"]
[Result "1-0"]
[CurrentPosition "rn3b1r/pp4kp/b2pBp1p/7Q/4P3/3P2P1/PPP4P/R4RK1 w - -"]
[Timezone "UTC"]
[ECO "C30"]
[ECOUrl "https://www.chess.com/openings/Kings-Gambit-Declined-Keene-Defense-3.g3-Qe7"]
[UTCDate "2011.02.01"]
[UTCTime "07:47:45"]
[WhiteElo "1752"]
[BlackElo "1806"]
[TimeControl "60"]
[Termination "alebits won by resignation"]
[StartTime "07:47:45"]
[EndDate "2011.02.01"]
[EndTime "07:48:51"]
[Link "https://www.chess.com/game/live/93563994"]

1. e4 {[%clk 0:01:00]} 1... e5 {[%clk 0:01:00]} 2. f4 {[%clk 0:00:59.2]} 2... Qh4+ {[%clk 0:00:56.1]} 3. g3 {[%clk 0:00:57.2]} 3... Qe7 {[%clk 0:00:55.8]} 4. Ne2 {[%clk 0:00:55.2]} 4... d6 {[%clk 0:00:55]} 5. Nbc3 {[%clk 0:00:52.3]} 5... f6 {[%clk 0:00:53.1]} 6. Bg2 {[%clk 0:00:51.7]} 6... Be6 {[%clk 0:00:52.4]} 7. O-O {[%clk 0:00:51]} 7... Bc4 {[%clk 0:00:51.7]} 8. d3 {[%clk 0:00:49.2]} 8... Ba6 {[%clk 0:00:48.8]} 9. Be3 {[%clk 0:00:48.7]} 9... exf4 {[%clk 0:00:48]} 10. Nxf4 {[%clk 0:00:46.8]} 10... Nh6 {[%clk 0:00:45.8]} 11. Ncd5 {[%clk 0:00:45.4]} 11... Qd7 {[%clk 0:00:44.4]} 12. Ne6 {[%clk 0:00:43]} 12... Qxe6 {[%clk 0:00:41.9]} 13. Nxc7+ {[%clk 0:00:40.9]} 13... Kd7 {[%clk 0:00:40.5]} 14. Nxe6 {[%clk 0:00:40.4]} 14... Kxe6 {[%clk 0:00:40.2]} 15. Bxh6 {[%clk 0:00:37.2]} 15... gxh6 {[%clk 0:00:37.8]} 16. Bh3+ {[%clk 0:00:35.4]} 16... Kf7 {[%clk 0:00:36.3]} 17. Qh5+ {[%clk 0:00:34.9]} 17... Kg8 {[%clk 0:00:34.8]} 18. Be6+ {[%clk 0:00:32.7]} 18... Kg7 {[%clk 0:00:30.9]} 1-0

[Event "Live Chess"]
[Site "Chess.com"]
[Date "2011.02.01"]
[Round "-"]
[White "hipposcottimus"]
[Black "alebits"]
[Result "0-1"]
[CurrentPosition "4kbnr/4pppp/p7/2p1P3/8/N1P2bR1/P1P2P1P/R1BrK3 w Qk -"]
[Timezone "UTC"]
[ECO "B20"]
[ECOUrl "https://www.chess.com/openings/Sicilian-Defense"]
[UTCDate "2011.02.01"]
[UTCTime "07:46:20"]
[WhiteElo "1815"]
[BlackElo "1741"]
[TimeControl "60"]
[Termination "alebits won by checkmate"]
[StartTime "07:46:20"]
[EndDate "2011.02.01"]
[EndTime "07:47:28"]
[Link "https://www.chess.com/game/live/93563740"]

1. e4 {[%clk 0:01:00]} 1... c5 {[%clk 0:01:00]} 2. Bb5 {[%clk 0:00:58.2]} 2... a6 {[%clk 0:00:58.5]} 3. Be2 {[%clk 0:00:56.8]} 3... b5 {[%clk 0:00:57.4]} 4. d4 {[%clk 0:00:56.3]} 4... d6 {[%clk 0:00:55.2]} 5. dxc5 {[%clk 0:00:54.5]} 5... Bb7 {[%clk 0:00:53.3]} 6. Bf3 {[%clk 0:00:51.3]} 6... Nc6 {[%clk 0:00:47.3]} 7. e5 {[%clk 0:00:48.1]} 7... dxc5 {[%clk 0:00:45.5]} 8. Bxc6+ {[%clk 0:00:42.5]} 8... Bxc6 {[%clk 0:00:42.9]} 9. Qxd8+ {[%clk 0:00:42.2]} 9... Rxd8 {[%clk 0:00:41.8]} 10. Ne2 {[%clk 0:00:41.2]} 10... Bxg2 {[%clk 0:00:39.4]} 11. Rg1 {[%clk 0:00:40.8]} 11... Be4 {[%clk 0:00:38.3]} 12. Na3 {[%clk 0:00:38.4]} 12... b4 {[%clk 0:00:36.3]} 13. Nc3 {[%clk 0:00:38]} 13... bxc3 {[%clk 0:00:31.2]} 14. bxc3 {[%clk 0:00:36.9]} 14... Bf3 {[%clk 0:00:29.2]} 15. Rg3 {[%clk 0:00:33.8]} 15... Rd1# {[%clk 0:00:25.8]} 0-1